bitfinex/quotes_SOLUSD_20250920
["timestamp","ask_amount","ask_price","bid_price","bid_amount"]
[1758403968851,4.02226707,240.48,240.43,0.72]
[1758403969068,4.02226707,240.48,240.44,0.72]
[1758403969437,4.02226707,240.48,240.45,0.72]
[1758403970539,3.35226707,240.48,240.45,0.72]
[1758403972145,4.25818855,240.49,240.46,0.72]
[1758403972350,0.1,240.49,240.46,0.72]
[1758403973162,0.1,240.49,240.47,32.0]
[1758403973355,0.1,240.49,240.48,0.72]
[1758403983168,0.1,240.49,240.48,32.68]
[1758403996387,0.1,240.49,240.48,31.96]
[1758403997490,0.1,240.49,240.48,32.63]
[1758403998584,0.1,240.49,240.48,31.96]
[1758404000188,0.1,240.49,240.48,32.63]
[1758404001585,0.1,240.49,240.48,46.22559401]
[1758404001790,0.1,240.49,240.48,50.48364286]
[1758404002173,0.1,240.5,240.48,54.64199282]
[1758404002382,0.1,240.52,240.51,44.79559401]
[1758404002692,0.68,240.61,240.52,13.59559401]
[1758404002871,10.38921675,240.64,240.52,14.26559401]
[1758404003067,10.38921675,240.64,240.54,13.59559401]
[1758404003282,10.38921675,240.64,240.55,32.63]
[1758404003866,10.38921675,240.64,240.56,31.96]
[1758404004072,10.38921675,240.64,240.57,31.96]
[1758404004885,0.68,240.63,240.57,31.96]
[1758404005093,14.54575679,240.62,240.57,31.96]
[1758404005281,0.68,240.61,240.57,31.96]
[1758404005994,14.54696591,240.6,240.57,31.96]
[1758404006370,14.54696591,240.6,240.57,44.44659583]
[1758404011598,10.39068994,240.6,240.57,44.44659583]
[1758404012985,10.39068994,240.6,240.57,45.15659583]
[1758404013298,4.15593051,240.62,240.58,32.65]
[1758404013886,10.38982628,240.62,240.58,31.94]
[1758404019096,10.38982628,240.62,240.58,32.65]
[1758404021208,10.38982628,240.62,240.59,31.92]
[1758404022712,27.04289286,240.62,240.59,31.92]
[1758404026014,27.04289286,240.62,240.58,0.71]
[1758404026311,27.04289286,240.62,240.59,31.92]
[1758404032720,27.04289286,240.62,240.59,32.63]
[1758404034097,27.73289286,240.62,240.59,31.92]
[1758404034717,27.04289286,240.62,240.59,31.92]
[1758404035019,27.04289286,240.62,240.59,32.63]
[1758404037029,27.04289286,240.62,240.6,0.7]
[1758404037402,10.38982628,240.62,240.6,0.7]
[1758404037618,12.49713608,240.61,240.6,0.7]
[1758404037820,12.49713608,240.61,240.59,31.92]
[1758404038010,12.49713608,240.61,240.59,32.62]
[1758404038825,4.15627597,240.6,240.59,32.62]
[1758404043028,14.54696591,240.6,240.59,31.92]
[1758404045645,14.54696591,240.6,240.59,32.62]
[1758404046149,17.35471938,240.6,240.59,32.62]
[1758404046437,17.35471938,240.6,240.59,31.92]
[1758404046836,17.35471938,240.6,240.59,32.62]
[1758404052015,17.35471938,240.6,240.59,31.92]
[1758404052740,17.35471938,240.6,240.59,32.62]
[1758404058719,16.85471938,240.6,240.59,32.62]
[1758404060547,16.85613753,240.6,240.59,32.62]
[1758404068644,16.85613753,240.6,240.59,31.92]
[1758404069550,16.85613753,240.6,240.59,32.62]
[1758404070953,16.85613753,240.6,240.59,0.7]
[1758404071139,16.85613753,240.6,240.59,32.6]
[1758404071447,16.85613753,240.6,240.59,31.9]
[1758404071641,16.85613753,240.6,240.59,32.6]
[1758404076965,16.85613753,240.6,240.59,0.7]
[1758404077258,16.85613753,240.6,240.59,32.6]
[1758404078964,16.85613753,240.6,240.59,0.7]
[1758404079260,16.85613753,240.6,240.59,32.6]
[1758404083332,16.85613753,240.6,240.59,31.9]
[1758404085759,16.85613753,240.6,240.59,32.6]
[1758404085940,16.85613753,240.6,240.59,31.9]
[1758404098270,29.3532736,240.6,240.59,31.9]
[1758404100678,15.30630769,240.6,240.59,31.9]
[1758404100873,15.30630769,240.6,240.59,32.58]
[1758404101454,15.30630769,240.6,240.59,31.9]
[1758404101855,19.46258366,240.6,240.59,31.9]
[1758404102576,16.65341204,240.6,240.59,32.58]
[1758404103575,19.46202905,240.6,240.59,32.58]
[1758404105958,19.46202905,240.6,240.59,31.9]
[1758404117386,19.46202905,240.6,240.59,32.61]
[1758404119689,16.65341204,240.6,240.59,32.61]
[1758404120189,12.49713607,240.6,240.59,32.61]
[1758404120495,4.1555851,240.64,240.59,32.61]
[1758404120683,27.0396019,240.64,240.6,0.71]
[1758404120987,4.15593051,240.62,240.61,31.88]
[1758404121288,4.15593051,240.62,240.61,32.59]
[1758404121764,6.96404734,240.62,240.61,32.59]
[1758404122172,6.96404734,240.62,240.61,0.71]
[1758404122379,19.45910138,240.62,240.61,32.59]
[1758404123270,30.55892766,240.62,240.57,12.18269548]
[1758404123473,3.51811683,240.61,240.58,31.88]
[1758404123868,12.49713608,240.6,240.58,31.88]
[1758404124068,2.80745843,240.59,240.58,31.88]
[1758404124476,3.51745843,240.61,240.58,31.88]
[1758404124677,12.49713608,240.59,240.58,31.88]
[1758404124881,15.30459451,240.59,240.58,31.88]
[1758404125784,19.46104324,240.59,240.58,31.88]
[1758404125985,20.17104324,240.59,240.58,31.88]
[1758404126192,19.46104324,240.59,240.58,31.88]
[1758404127193,19.46104324,240.59,240.57,32.58]
[1758404127371,2.80745843,240.58,240.57,32.58]
[1758404128178,6.96407992,240.58,240.57,32.58]
[1758404128380,19.46173661,240.58,240.57,32.58]
[1758404130972,19.46173661,240.58,240.57,31.88]
[1758404131883,19.46173661,240.58,240.57,32.58]
[1758404132597,19.46173661,240.58,240.57,31.88]
[1758404134201,16.65427818,240.58,240.57,31.88]
[1758404137004,30.56157052,240.58,240.53,0.7]
[1758404137181,27.75583192,240.58,240.55,31.86]
[1758404137382,15.25817523,240.58,240.55,31.86]
[1758404137799,12.49973959,240.57,240.55,31.86]
[1758404138001,4.15696707,240.56,240.55,31.86]
[1758404138993,16.65670666,240.56,240.55,31.86]
[1758404144605,27.75912435,240.56,240.5,0.7]
[1758404144803,2.80455753,240.55,240.51,31.86]
[1758404145107,0.71,240.54,240.51,31.86]
[1758404145307,13.2107813,240.54,240.51,31.86]
[1758404145486,13.2107813,240.54,240.51,32.56]
[1758404145487,12.5007813,240.54,240.51,32.56]
[1758404145682,14.55059449,240.54,240.51,32.56]
[1758404146083,12.5007813,240.53,240.51,32.56]
[1758404146505,14.55059449,240.54,240.51,32.56]
[1758404146705,16.6584397,240.52,240.51,32.56]
[1758404160810,10.39328178,240.54,240.51,32.56]
[1758404161118,12.5007813,240.53,240.52,0.7]
[1758404161298,12.5007813,240.53,240.52,32.56]
[1758404161502,4.15713988,240.55,240.52,32.56]
[1758404161701,16.65687947,240.55,240.53,0.7]
[1758404161900,16.65687947,240.55,240.54,32.56]
[1758404162322,4.15696959,240.56,240.54,32.56]
[1758404162627,4.15696959,240.56,240.55,0.7]
[1758404162804,6.95830013,240.56,240.55,0.7]
[1758404165326,4.15696959,240.56,240.55,0.7]
[1758404166227,6.95939568,240.56,240.55,0.7]
[1758404166923,4.15696959,240.56,240.55,0.7]
[1758404170533,4.15696959,240.56,240.54,31.86]
[1758404170834,4.15696959,240.56,240.54,32.58]
[1758404171410,4.15696959,240.56,240.54,31.86]
[1758404171752,16.65566764,240.56,240.54,31.86]
[1758404173532,17.36566764,240.56,240.54,31.86]
[1758404174027,4.86696959,240.56,240.54,31.86]
[1758404174227,17.36566765,240.56,240.54,31.86]
[1758404175412,16.65566765,240.56,240.54,31.86]
[1758404176928,4.15696959,240.56,240.54,31.86]
[1758404177317,16.65566764,240.56,240.54,31.86]
[1758404177515,4.15696959,240.56,240.54,31.86]
[1758404178030,6.96206388,240.56,240.54,31.86]
[1758404178639,4.15696959,240.56,240.54,31.86]
[1758404179134,6.96222425,240.56,240.54,31.86]
[1758404179438,4.15696959,240.56,240.54,32.58]
[1758404179619,6.96239492,240.56,240.54,32.58]
[1758404179820,4.15696959,240.56,240.54,31.86]
[1758404180021,6.96239496,240.56,240.54,31.86]
[1758404180441,4.15696959,240.56,240.54,31.86]
[1758404180938,4.15696959,240.56,240.54,32.58]
[1758404181442,6.96257757,240.56,240.54,32.58]
[1758404183048,6.96257757,240.56,240.54,31.86]
[1758404183434,6.96257757,240.56,240.55,0.72]
[1758404183640,6.96257757,240.56,240.54,31.86]
[1758404186531,7.62257757,240.56,240.54,31.86]
[1758404186935,4.15696959,240.56,240.54,31.86]
[1758404187537,12.49869805,240.55,240.54,31.86]
[1758404187739,19.46208505,240.55,240.54,31.86]
[1758404188548,19.46208505,240.55,240.53,0.7]
[1758404188750,16.65583793,240.55,240.53,0.7]
[1758404188934,16.65583793,240.55,240.52,31.84]
[1758404189251,16.65583793,240.55,240.53,0.7]
[1758404189854,2.80632757,240.54,240.52,32.54]
[1758404190153,15.30658799,240.54,240.53,0.7]
[1758404193256,19.4639007,240.54,240.53,0.7]
[1758404203863,15.30658799,240.54,240.52,31.84]
[1758404204048,2.80632757,240.53,240.52,32.54]
[1758404204558,4.15739612,240.54,240.52,32.54]
[1758404204962,6.96561746,240.54,240.52,32.54]
[1758404206076,12.50026042,240.54,240.52,32.54]
[1758404208181,4.15748555,240.53,240.52,32.54]
[1758404209166,7.62600823,240.53,240.52,31.84]
[1758404209474,6.96600823,240.53,240.52,31.84]
[1758404210955,7.62600823,240.53,240.49,31.84]
[1758404211157,2.80852268,240.52,240.49,32.54]
[1758404211482,2.80852268,240.51,240.49,32.54]
[1758404211660,2.80852268,240.5,240.49,32.54]
[1758404212059,6.96652683,240.5,240.49,32.54]
[1758404212475,4.15800415,240.5,240.49,32.54]
[1758404212779,6.96652683,240.5,240.49,32.54]
[1758404213078,4.15800415,240.5,240.49,32.54]
[1758404213273,6.96652683,240.5,240.49,32.54]
[1758404213472,2.80852268,240.5,240.49,32.54]
[1758404213964,2.80852268,240.5,240.49,31.84]
[1758404214572,15.31034586,240.5,240.49,31.84]
[1758404214958,19.46835001,240.5,240.49,31.84]
[1758404216284,30.5733604,240.5,240.46,31.84]
[1758404216482,2.80852268,240.49,240.46,32.52]
[1758404217062,4.15834996,240.48,240.46,32.52]
[1758404218287,16.66190922,240.47,240.46,32.52]
[1758404221294,16.66190922,240.47,240.46,0.68]
[1758404221790,16.66190922,240.47,240.45,12.25298914]
[1758404221990,16.66190922,240.47,240.45,0.68]
[1758404223692,16.66190922,240.47,240.45,13.18906649]
[1758404228704,16.66190922,240.47,240.45,12.50906649]
[1758404228881,4.15834996,240.48,240.45,0.72]
[1758404229275,12.50338633,240.46,240.43,31.84]
[1758404229473,4.86834996,240.48,240.44,0.72]
[1758404229895,12.50338633,240.47,240.44,0.72]
[1758404230997,14.55543541,240.46,240.43,31.84]
[1758404231186,15.26543541,240.46,240.43,31.84]
[1758404231908,12.50494988,240.45,240.43,31.84]
[1758404232204,4.15904175,240.44,240.43,31.84]
[1758404232589,16.66399162,240.44,240.43,31.84]
[1758404233190,16.66399162,240.44,240.43,32.56]
[1758404234707,16.66399162,240.44,240.43,0.72]
[1758404236109,16.66399162,240.44,240.42,12.80046818]
[1758404236296,16.66399162,240.44,240.42,0.72]
[1758404236498,14.55543541,240.46,240.42,0.72]
[1758404236811,12.50494988,240.44,240.43,0.72]
[1758404236996,12.50494988,240.44,240.41,12.37876576]
[1758404237215,12.50494988,240.44,240.41,13.09876576]
[1758404237403,12.50494988,240.44,240.42,0.72]
[1758404238005,12.50494988,240.44,240.43,0.72]
[1758404238205,4.15834996,240.48,240.43,32.54]
[1758404238422,4.15834996,240.48,240.44,0.72]
[1758404238600,6.95863718,240.48,240.44,0.72]
[1758404239114,4.15834996,240.48,240.44,0.72]
[1758404239887,2.80026673,240.49,240.44,0.72]
[1758404240082,4.15731271,240.54,240.44,4.87895191]
[1758404240391,7.66701408,240.54,240.45,13.22130222]
[1758404240701,7.66701408,240.54,240.46,32.54]
[1758404241007,7.66701408,240.54,240.47,0.72]
[1758404241210,2.79970137,240.54,240.47,4.87848493]
[1758404241412,2.79970137,240.55,240.48,0.72]
[1758404241587,3.50970137,240.57,240.48,13.22026042]
[1758404241787,3.50970137,240.57,240.49,0.72]
[1758404241998,3.50970137,240.57,240.5,31.82]
[1758404242307,3.50970137,240.57,240.51,0.72]
[1758404242616,4.15696707,240.56,240.51,0.72]
[1758404242820,4.15696707,240.56,240.52,12.50026042]
[1758404243114,4.15696707,240.56,240.52,13.22026042]
[1758404243927,4.15696707,240.56,240.53,0.72]
[1758404244612,6.95650794,240.57,240.54,0.72]
[1758404244914,2.79970137,240.56,240.54,0.72]
[1758404245294,4.15680657,240.57,240.54,0.72]
[1758404245700,4.15680657,240.57,240.54,4.87680657]
[1758404254819,0.65,240.56,240.54,4.15680657]
[1758404255916,0.65,240.56,240.51,0.72]
[1758404256124,0.65,240.56,240.52,12.4992188]
[1758404256310,0.65,240.56,240.52,13.2192188]
[1758404256621,2.79970137,240.57,240.52,12.4992188]
[1758404256838,3.44970137,240.57,240.53,0.72]
[1758404257136,4.15696707,240.56,240.53,13.21921879]
[1758404257303,4.15696707,240.56,240.54,0.72]
[1758404258611,4.15696707,240.56,240.53,12.49921879]
[1758404258811,4.15696707,240.56,240.53,13.21921879]
[1758404259222,4.15696707,240.56,240.53,0.72]
[1758404259522,0.65,240.55,240.52,11.04155374]
[1758404260116,4.80696707,240.56,240.52,11.76155374]
[1758404261840,4.80696707,240.56,240.52,0.72]
[1758404262000,4.80696707,240.56,240.52,11.11155374]
[1758404262201,4.80696707,240.56,240.52,0.72]
[1758404264734,4.15696707,240.56,240.51,10.39155374]
[1758404264925,4.15696707,240.56,240.53,0.72]
[1758404265123,4.15696707,240.56,240.54,0.72]
[1758404265320,4.15696707,240.56,240.52,0.72]
[1758404267031,4.15696707,240.56,240.5,42.86155374]
[1758404267335,4.80696707,240.56,240.52,0.72]
[1758404268826,4.15696707,240.56,240.5,31.82]
[1758404269131,4.15696707,240.56,240.53,0.72]
[1758404274517,4.80696707,240.56,240.51,0.72]
[1758404274716,4.80696707,240.56,240.52,0.72]
[1758404275930,4.80696707,240.56,240.5,31.82]
[1758404276133,4.15696707,240.56,240.53,0.72]
[1758404278816,4.82696707,240.56,240.5,31.82]
[1758404279018,4.82696707,240.56,240.51,0.68]
[1758404280239,4.15696707,240.56,240.51,0.68]
[1758404280445,4.15627597,240.6,240.51,0.68]
[1758404280746,2.80075272,240.59,240.51,4.83780758]
[1758404280925,2.80075272,240.61,240.52,0.68]
[1758404281125,6.95685989,240.61,240.52,0.68]
[1758404281536,2.80075272,240.6,240.52,0.68]
[1758404281932,6.95685989,240.61,240.52,0.68]
[1758404282260,6.95685989,240.61,240.53,4.15748555]
[1758404282434,6.95685989,240.61,240.54,0.68]
[1758404283338,6.95685989,240.61,240.54,4.83720267]
[1758404283641,6.95685989,240.61,240.55,0.68]
[1758404283825,6.95685989,240.61,240.55,32.48]
[1758404284027,6.95685989,240.61,240.56,0.67]
[1758404284229,2.80075272,240.6,240.56,0.67]
[1758404285138,2.80075272,240.6,240.57,0.67]
[1758404285337,4.15610717,240.61,240.57,0.67]
[1758404285338,6.95685989,240.61,240.57,0.67]
[1758404285728,7.64685989,240.61,240.57,0.67]
[1758404285927,2.80075272,240.6,240.57,0.67]
[1758404286318,4.84610717,240.61,240.57,0.67]
[1758404287034,7.64685989,240.61,240.57,0.67]
[1758404287342,2.80075272,240.6,240.57,0.67]
[1758404287729,4.84610717,240.61,240.57,0.67]
[1758404288041,0.69,240.6,240.57,0.67]
[1758404288645,3.49075272,240.61,240.57,0.67]
[1758404291244,4.84619582,240.61,240.57,0.67]
[1758404292637,7.64694854,240.61,240.57,0.67]
[1758404292944,2.80075272,240.6,240.57,0.67]
[1758404293314,4.84619582,240.61,240.57,0.67]
[1758404293714,4.15593051,240.62,240.57,0.67]
[1758404293920,0.69,240.61,240.56,0.67]
[1758404294547,0.69,240.6,240.56,0.67]
[1758404296146,4.15593051,240.62,240.55,31.8]
[1758404296325,4.15627597,240.6,240.56,0.67]
[1758404297847,4.15627597,240.6,240.57,0.67]
[1758404298557,0.69,240.59,240.55,31.8]
[1758404298732,0.69,240.58,240.52,31.78]
[1758404298926,0.69,240.57,240.52,31.78]
[1758404299127,0.69,240.56,240.52,32.45]
[1758404299745,4.8472091,240.55,240.52,31.78]
[1758404299934,0.69,240.54,240.52,31.78]
[1758404300338,4.8472091,240.55,240.52,31.78]
[1758404301835,4.1572091,240.55,240.52,32.45]
[1758404306852,4.84696872,240.56,240.52,32.45]
[1758404309338,4.84696872,240.56,240.53,0.66]
[1758404309741,4.84696872,240.56,240.52,32.44]
[1758404309951,4.84696872,240.56,240.52,31.78]
[1758404310150,4.15696872,240.56,240.53,0.66]
[1758404314567,4.84696872,240.56,240.52,32.44]
[1758404316043,14.54938641,240.56,240.52,31.78]
[1758404316251,3.4922262,240.55,240.52,31.78]
[1758404316642,0.69,240.54,240.49,32.44]
[1758404316856,0.69,240.54,240.5,0.66]
[1758404316857,4.84731271,240.54,240.5,0.66]
[1758404319667,4.15731271,240.54,240.5,0.66]
[1758404320274,4.84731271,240.54,240.5,0.66]
[1758404320965,4.84731271,240.54,240.48,31.78]
[1758404321146,4.84731271,240.54,240.49,0.66]
[1758404321468,4.84731271,240.54,240.5,0.66]
[1758404326652,15.24059449,240.54,240.5,0.66]
[1758404326852,14.55059449,240.54,240.51,0.66]
[1758404327774,0.69,240.55,240.51,0.66]
[1758404330386,4.15731271,240.54,240.51,0.66]
[1758404330576,4.84731271,240.54,240.49,0.66]
[1758404331183,4.15679428,240.57,240.49,0.66]
[1758404331481,6.95713961,240.57,240.49,0.66]
[1758404331655,4.15679428,240.57,240.49,0.66]
[1758404332473,4.84679428,240.57,240.49,4.8180355]
[1758404332688,4.84679428,240.57,240.5,0.66]
[1758404333267,4.15679428,240.57,240.5,0.66]
[1758404333757,4.15679428,240.57,240.5,4.81784677]
[1758404333955,4.15679428,240.57,240.51,0.66]
[1758404334158,4.84679428,240.57,240.51,0.66]
[1758404335263,4.15679428,240.57,240.51,0.66]
[1758404336772,4.15679428,240.57,240.51,4.81781569]
[1758404336973,4.15679428,240.57,240.52,0.68]
[1758404337367,4.83679428,240.57,240.53,0.68]
[1758404338786,0.68,240.57,240.53,0.68]
[1758404340183,4.83664095,240.58,240.54,0.68]
[1758404340367,7.63934652,240.58,240.52,0.68]
[1758404340882,2.80270557,240.57,240.52,0.68]
[1758404341180,4.83664095,240.58,240.52,0.68]
[1758404341557,7.63934652,240.58,240.52,0.68]
[1758404341763,2.80270557,240.57,240.52,0.68]
[1758404341971,4.83664095,240.58,240.52,0.68]
[1758404348191,4.83664095,240.58,240.52,4.83764166]
[1758404348377,4.83664095,240.58,240.53,0.72]
[1758404348581,4.83664095,240.58,240.54,0.72]
[1758404349378,4.86680486,240.57,240.54,0.72]
[1758404350295,7.67095677,240.59,240.53,4.15743673]
[1758404350474,7.67095677,240.59,240.55,0.72]
[1758404350678,2.80437267,240.58,240.53,4.87743673]
[1758404350986,0.71,240.58,240.54,0.72]
[1758404355793,6.96095677,240.59,240.55,0.72]
[1758404356019,0.71,240.58,240.54,0.72]
[1758404356171,2.80437267,240.59,240.52,4.1576584]
[1758404356375,4.1565841,240.6,240.55,0.72]
[1758404356376,2.80437267,240.6,240.55,0.72]
[1758404356570,3.51437267,240.6,240.56,0.72]
[1758404356779,4.15626337,240.61,240.56,0.72]
[1758404356997,4.8665841,240.62,240.57,0.72]
[1758404357197,0.71,240.62,240.57,0.72]
[1758404357377,14.54455684,240.63,240.57,0.72]
[1758404357578,2.80437267,240.62,240.57,0.72]
[1758404357878,2.80437267,240.62,240.57,4.87664122]
[1758404358073,2.80437267,240.63,240.58,0.72]
[1758404358281,4.1554162,240.65,240.58,31.92]
[1758404358282,2.80437267,240.65,240.58,31.92]
[1758404358481,3.51437267,240.65,240.59,4.8754162]
[1758404358681,0.71,240.65,240.6,0.72]
[1758404358881,0.71,240.65,240.61,0.72]
[1758404359809,4.86541272,240.65,240.61,0.72]
[1758404360193,0.71,240.65,240.61,0.72]
[1758404360395,1.44641071,240.62,240.61,0.72]
[1758404360590,0.71,240.65,240.61,0.72]
[1758404360804,1.44641071,240.62,240.61,0.72]
[1758404365607,2.80437267,240.67,240.61,4.87608034]
[1758404365786,1.44641071,240.66,240.62,0.72]
[1758404366111,1.44641071,240.66,240.62,13.2129727]
[1758404366399,1.44641071,240.66,240.63,0.71]
[1758404366604,1.44641071,240.65,240.64,0.71]
[1758404369296,1.44641071,240.65,240.64,32.67]
[1758404370109,4.15514707,240.67,240.64,32.67]
[1758404370411,1.44641071,240.65,240.64,44.93078905]
[1758404372323,1.44641071,240.65,240.64,55.41689305]
[1758404372690,1.44641071,240.65,240.64,23.45689305]
[1758404372891,1.44641071,240.65,240.64,44.91078905]
[1758404373418,1.44641071,240.65,240.64,49.06589996]
[1758404375816,2.25932786,240.65,240.64,49.06589996]
[1758404377124,0.1,240.69,240.64,53.22144842]
[1758404377296,2.25932786,240.68,240.65,0.71]
[1758404377993,2.25932786,240.68,240.65,4.86470378]
[1758404378195,4.25474974,240.69,240.66,32.77]
[1758404378394,2.25932786,240.67,240.66,32.77]
[1758404378596,4.25474974,240.69,240.66,32.77]
[1758404378808,2.25932786,240.67,240.66,32.77]
[1758404383812,2.25932786,240.67,240.66,36.9249023]
[1758404390134,2.25932786,240.67,240.66,32.77]
[1758404391035,2.25932786,240.67,240.66,36.9249023]
[1758404393632,2.25932786,240.67,240.66,32.77]
[1758404393930,6.41439496,240.67,240.66,32.06]
[1758404395511,6.41439496,240.67,240.66,32.77]
[1758404396209,6.41439496,240.67,240.66,32.06]
[1758404398316,6.41439496,240.67,240.66,32.67]
[1758404399524,6.41439496,240.67,240.66,0.71]
[1758404399831,6.41439496,240.67,240.66,32.67]
[1758404400132,4.1550671,240.67,240.66,0.71]
[1758404400438,7.12439496,240.67,240.61,31.96]
[1758404400607,2.25932786,240.62,240.56,11.09660941]
[1758404400942,2.79968022,240.66,240.57,31.96]
[1758404401238,12.49609497,240.63,240.58,14.30559401]
[1758404401414,2.25932786,240.65,240.6,13.59559401]
[1758404401613,2.25932786,240.65,240.61,32.69]
[1758404401916,2.25932786,240.65,240.62,0.71]
[1758404402219,6.95564411,240.67,240.63,32.69]
[1758404402404,2.25932786,240.64,240.63,32.69]
[1758404402607,6.95564411,240.67,240.63,32.69]
[1758404402808,2.25932786,240.65,240.64,0.71]
[1758404403028,2.25932786,240.65,240.64,32.0]
[1758404403330,2.25932786,240.65,240.64,32.71]
[1758404404533,6.41474028,240.65,240.64,32.71]
[1758404405230,4.15541242,240.65,240.64,32.71]
[1758404405833,7.09474028,240.65,240.59,0.71]
[1758404406126,7.09474028,240.65,240.6,32.69]
[1758404406127,2.25932786,240.61,240.6,32.69]
[1758404407214,2.25932786,240.63,240.6,32.69]
[1758404407414,2.25932786,240.63,240.61,0.71]
[1758404409417,2.25932786,240.63,240.6,31.98]
[1758404409618,2.25932786,240.63,240.61,0.71]
[1758404410017,2.25932786,240.63,240.62,0.71]
[1758404410536,2.25932786,240.63,240.6,32.69]
[1758404410724,2.25932786,240.63,240.61,0.71]
[1758404414344,4.15560726,240.64,240.61,0.71]
[1758404414544,2.25932786,240.63,240.61,0.71]
[1758404415642,2.25932786,240.63,240.58,8.31221649]
[1758404415643,7.09512799,240.63,240.58,4.86560726]
[1758404415835,2.25932786,240.61,240.59,32.71]
[1758404418054,4.156001,240.62,240.59,32.0]
[1758404418259,6.41532886,240.62,240.59,32.71]
[1758404420329,6.41532886,240.62,240.6,0.71]
[1758404425454,6.41532886,240.62,240.6,31.96]
[1758404425455,7.09532886,240.62,240.6,31.96]
[1758404425754,6.41532886,240.62,240.6,31.96]
[1758404433864,2.25932786,240.62,240.61,0.71]
[1758404434362,2.25932786,240.65,240.61,0.71]
[1758404435646,2.25932786,240.65,240.62,4.15593051]
[1758404435862,2.25932786,240.65,240.63,32.63]
[1758404436171,2.25932786,240.65,240.64,0.71]
[1758404437775,1.44586795,240.66,240.64,0.71]
[1758404438952,1.44586795,240.66,240.63,32.63]
[1758404439151,1.44586795,240.66,240.63,31.92]
[1758404439458,1.44586795,240.66,240.64,0.71]
[1758404440572,1.44586795,240.66,240.65,0.71]
[1758404440866,1.44586795,240.66,240.63,32.63]
[1758404441064,1.44586795,240.66,240.64,0.71]
[1758404441874,1.44586795,240.66,240.65,0.71]
[1758404442566,1.44586795,240.66,240.63,32.63]
[1758404442769,1.44586795,240.66,240.64,0.71]
[1758404448474,1.44586795,240.65,240.64,0.71]
[1758404451490,1.44586795,240.66,240.64,0.71]
[1758404452165,1.44586795,240.66,240.63,31.92]
[1758404452461,1.44586795,240.66,240.64,0.71]
[1758404452660,1.44586795,240.66,240.65,0.71]
[1758404454074,5.60083894,240.68,240.65,0.71]
[1758404454278,5.60083894,240.68,240.66,31.84]
[1758404454464,0.1,240.69,240.67,0.71]
[1758404454670,1.54586795,240.69,240.67,0.71]
[1758404455154,1.54586795,240.69,240.66,31.84]
[1758404455358,1.54586795,240.69,240.66,32.55]
[1758404456174,5.70063276,240.69,240.66,32.55]
[1758404460688,5.70063276,240.69,240.66,31.84]
[1758404460993,6.40063276,240.69,240.66,31.84]
[1758404461177,5.70063276,240.69,240.67,0.69]
[1758404463874,5.70063276,240.69,240.66,31.84]
[1758404464074,5.70063276,240.69,240.66,32.53]
[1758404471105,5.70063276,240.69,240.67,0.69]
[1758404471599,5.70063276,240.69,240.66,31.84]
[1758404471803,5.70063276,240.69,240.67,0.69]
[1758404472108,5.70063276,240.69,240.66,31.84]
[1758404472479,5.70063276,240.69,240.67,0.69]
[1758404473688,16.77743736,240.69,240.66,31.84]
[1758404473879,0.69,240.68,240.66,31.84]
[1758404474087,14.64156941,240.69,240.66,31.84]
[1758404474304,1.44586795,240.68,240.66,31.84]
[1758404474603,4.1550671,240.67,240.66,32.53]
[1758404478314,4.1550671,240.67,240.66,31.84]
[1758404478798,4.1550671,240.67,240.66,32.53]
[1758404479309,4.1550671,240.67,240.66,31.84]
[1758404480213,4.1550671,240.67,240.66,32.53]
[1758404481633,4.15489446,240.68,240.66,32.53]